Workbook

Sheet 検証（USDJPY４H）
B2: 通貨ペア | F2: 時間足 | H2: 1H | J2: 当初資金 | L2: =C9 -> 1,000,000 | N2: 最終資金 | P2: =C108+R108 -> 
B3: エントリー理由 | D3: 10MA・20MAの両方の上側にキャンドルがあれば買い方向、下側なら売り方向。MAに触れてPB出現でエントリー待ち、PB高値or安値ブレイクでエントリー。 | J3: 決済理由 | L3: ・トレーリングストップ（ダウ理論）
B4: 損益金額 | D4: =SUM($R$9:$S$993) -> 54,392,460 | F4: 損益pips | H4: =SUM($T$9:$U$108) -> 2563.8 | J4: 最大ドローアップ | L4: =MAX($C$9:$D$990)-C9 -> 54,392,460 | N4: 最大ドローダウン | P4: =MIN($C$9:$D$990)-C9 -> 0
B5: 勝数 | C5: =COUNTIF($R$9:$R$990,">0") -> 19 | D5: 負数 | E5: =COUNTIF($R$9:$R$990,"<0") -> 4 | F5: 引分 | G5: =COUNTIF($R$9:$R$990,"=0") -> 0 | H5: 勝率 | I5: =C5/SUM(C5,E5,G5) -> 82.6% | J5: 最大連勝 | N5: 最大連敗
B7: No. | C7: 資金 | E7: エントリー | J7: リスク（3%） | M7: ロット | N7: 決済 | R7: 損益
E8: 西暦 | F8: 日付 | G8: 売買 | H8: レート | J8: pips | K8: 損失上限 | N8: 西暦 | O8: 日付 | P8: レート | R8: 金額 | T8: pips
B9: 1 | C9: 1,000,000 | E9: 2015 | F9: 2016-09-17 | G9: 買 | H9: 120.517 | J9: 18 | K9: =IF(F9="","",C9*0.03) -> 30,000 | M9: =IF(J9="","",(K9/J9)/1000) -> 1.67 | N9: 2015 | O9: 2016-09-17 | P9: 120.742 | R9: =IF(O9="","",(IF(G9="売",H9-P9,P9-H9))*M9*100000) -> 37,500 | T9: =IF(O9="","",IF(R9<0,J9*(-1),IF(G9="買",(P9-H9)*100,(H9-P9)*100))) -> 22.5
B10: 2 | C10: =IF(R9="","",C9+R9) -> 1,037,500 | F10: 2016-09-25 | G10: 売 | H10: 120.924 | J10: 29 | K10: 31,125 | M10: =IF(J10="","",(K10/J10)/1000) -> 1.07 | O10: 2016-09-28 | P10: 119.825 | R10: =IF(O10="","",(IF(G10="売",H10-P10,P10-H10))*M10*100000) -> 117,953 | T10: =IF(O10="","",IF(R10<0,J10*(-1),IF(G10="買",(P10-H10)*100,(H10-P10)*100))) -> 109.9
B11: 3 | C11: 1,155,453 | F11: 2016-09-29 | G11: 買 | H11: 119.498 | J11: 26 | K11: 34,664 | M11: 1.33 | N11: 2015 | O11: 2016-09-30 | P11: 120.226 | R11: 97,058 | T11: 72.8
B12: 4 | C12: 1,252,511 | F12: 2016-10-01 | G12: 買 | H12: 119.895 | J12: 14 | K12: 37,575 | M12: 2.68 | O12: 2016-10-01 | P12: 119.755 | R12: -37,575 | T12: -14.0
B13: 5 | C13: 1,214,936 | F13: 2016-10-05 | G13: 買 | H13: 120.011 | J13: 11 | K13: 36,448 | M13: 3.31 | O13: 2016-10-05 | P13: 120.431 | R13: 139,165 | T13: 42.0
B14: 6 | C14: 1,354,101 | F14: 2016-10-07 | G14: 売 | H14: 120.171 | J14: 12 | K14: 40,623 | M14: 3.39 | O14: 2016-10-08 | P14: 119.677 | R14: 167,231 | T14: 49.4
B15: 7 | C15: 1,521,333 | F15: 2016-10-09 | G15: 買 | H15: 119.984 | J15: 15 | K15: 45,640 | M15: 3.04 | O15: 2016-10-09 | P15: 120.209 | R15: 68,460 | T15: 22.5
B16: 8 | C16: 1,589,793 | F16: 2016-10-14 | G16: 売 | H16: 119.53 | J16: 14 | K16: 47,694 | M16: 3.41 | O16: 2016-10-15 | P16: 118.75 | R16: 265,722 | T16: 78.0
B17: 9 | C17: 1,855,515 | F17: 2016-10-16 | G17: 買 | H17: 119.065 | J17: 14 | K17: 55,665 | M17: 3.98 | O17: 2016-10-22 | P17: 120.675 | R17: 640,153 | T17: 161.0
B18: 10 | C18: 2,495,668 | F18: 2016-10-28 | G18: 買 | H18: 120.384 | J18: 10 | K18: 74,870 | M18: 7.49 | O18: 2016-10-28 | P18: 120.287 | R18: -72,624 | T18: -10.0
B19: 11 | C19: 2,423,044 | F19: 2016-11-05 | G19: 買 | H19: 120.505 | J19: 7 | K19: 72,691 | M19: 10.38 | O19: 2016-11-09 | P19: 123.308 | R19: 1,872,321 | T19: 180.3
B20: 12 | C20: 4,295,365 | F20: 2016-11-12 | G20: 売 | H20: 122.929 | J20: 10 | K20: 128,861 | M20: 12.89 | O20: 2016-11-16 | P20: 122.505 | R20: 546,370 | T20: 42.4
B21: 13 | C21: 4,841,735 | F21: 2016-11-19 | G21: 売 | H21: 123.028 | J21: 11 | K21: 145,252 | M21: 13.20 | O21: 2016-11-23 | P21: 123.145 | R21: -154,495 | T21: -11.0
B22: 14 | C22: 4,687,240 | F22: 2016-11-27 | G22: 買 | H22: 122.409 | J22: 9 | K22: 140,617 | M22: 15.62 | O22: 2016-12-03 | P22: 123.451 | R22: 1,628,035 | T22: 104.2
B23: 15 | C23: 6,315,274 | F23: 2016-12-09 | G23: 売 | H23: 122.709 | J23: 12 | K23: 189,458 | M23: 15.79 | O23: 2016-12-14 | P23: 120.777 | R23: 3,050,278 | T23: 193.2
B24: 16 | C24: 9,365,552 | F24: 2016-12-18 | G24: 売 | H24: 121.359 | J24: 25 | K24: 280,967 | M24: 11.24 | O24: 2016-12-24 | P24: 120.378 | R24: 1,102,513 | T24: 98.1
B25: 17 | C25: 10,468,065 | F25: 2016-01-05 | G25: 売 | H25: 119.297 | J25: 18 | K25: 314,042 | M25: 17.45 | N25: 2016 | O25: 2016-01-07 | P25: 117.5 | R25: 3,135,185 | T25: 179.7
B26: 18 | C26: 13,603,250 | F26: 2016-01-21 | G26: 買 | H26: 117.558 | J26: 30 | K26: 408,098 | M26: 13.60 | O26: 2016-02-02 | P26: 120.782 | R26: 4,385,688 | T26: 322.4
B27: 19 | C27: 17,988,938 | F27: 2016-02-04 | G27: 売 | H27: 114.705 | J27: 22 | K27: 539,668 | M27: 24.53 | O27: 2016-02-24 | P27: 111.048 | R27: 8,970,756 | T27: 365.7
B28: 20 | C28: 26,959,694 | F28: 2016-02-25 | G28: 買 | H28: 112.202 | J28: 18 | K28: 808,791 | M28: 44.93 | O28: 2016-03-02 | P28: 113.895 | R28: 7,607,127 | T28: 169.3
B29: 21 | C29: 34,566,821 | F29: 2016-03-03 | G29: 売 | H29: 114.036 | J29: 23 | K29: 1,037,005 | M29: 45.09 | O29: 2016-03-09 | P29: 112.325 | R29: 7,714,413 | T29: 171.1
B30: 22 | C30: 42,281,234 | F30: 2016-03-10 | G30: 買 | H30: 112.902 | J30: 20 | K30: 1,268,437 | M30: 63.42 | O30: 2016-03-15 | P30: 112.698 | R30: -1,293,806 | T30: -20.0
B31: 23 | C31: 40,987,429 | F31: 2016-03-16 | G31: 売 | H31: 113.606 | J31: 20 | K31: 1,229,623 | M31: 61.48 | O31: 2016-03-18 | P31: 111.263 | R31: 14,405,032 | T31: 234.3
B32: 24 | C32: 55,392,460 | G32: 売
B33: 25 | G33: 買
B34: 26 | G34: 売
B35: 27 | G35: 売
B36: 28 | G36: 売
B37: 29 | G37: 売
B38: 30 | G38: 買
B39: 31 | G39: 買
B40: 32 | G40: 買
B41: 33 | G41: 売
B42: 34 | G42: 買
B43: 35 | G43: 売
B44: 36 | G44: 買
B45: 37 | G45: 売
B46: 38 | G46: 買
B47: 39 | G47: 買
B48: 40 | G48: 売
B49: 41 | G49: 買
B50: 42 | G50: 買
B51: 43 | G51: 売
B52: 44 | G52: 売
B53: 45 | G53: 買
B54: 46 | G54: 買
B55: 47 | G55: 売
B56: 48 | G56: 売
B57: 49 | G57: 売
B58: 50 | G58: 売
B59: 51 | G59: 売
B60: 52 | G60: 売
B61: 53 | G61: 売
B62: 54 | G62: 売
B63: 55 | G63: 買
B64: 56 | G64: 売
B65: 57 | G65: 売
B66: 58 | G66: 売
B67: 59 | G67: 売
B68: 60 | G68: 買
B69: 61 | G69: 買
B70: 62 | G70: 売
B71: 63 | G71: 買
B72: 64 | G72: 売
B73: 65 | G73: 買 | K73: =IF(F73="","",C73*0.03) -> 
B74: 66 | C74: =IF(R73="","",C73+R73) ->  | G74: 買 | M74: =IF(J74="","",(K74/J74)/1000) ->  | R74: =IF(O74="","",(IF(G74="売",H74-P74,P74-H74))*M74*100000) ->  | T74: =IF(O74="","",IF(R74<0,J74*(-1),IF(G74="買",(P74-H74)*100,(H74-P74)*100))) -> 
B75: 67 | G75: 売
B76: 68 | G76: 売
B77: 69 | G77: 売
B78: 70 | G78: 買
B79: 71 | G79: 売
B80: 72 | G80: 買
B81: 73 | G81: 売
B82: 74 | G82: 売
B83: 75 | G83: 売
B84: 76 | G84: 売
B85: 77 | G85: 買
B86: 78 | G86: 売
B87: 79 | G87: 買
B88: 80 | G88: 買
B89: 81 | G89: 買
B90: 82 | G90: 買
B91: 83 | G91: 買
B92: 84 | G92: 売
B93: 85 | G93: 買
B94: 86 | G94: 売
B95: 87 | G95: 買
B96: 88 | G96: 売
B97: 89 | G97: 買
B98: 90 | G98: 売
B99: 91 | G99: 買
B100: 92 | G100: 買
B101: 93 | G101: 売
B102: 94 | G102: 売
B103: 95 | G103: 売
B104: 96 | G104: 買
B105: 97 | G105: 売
B106: 98 | G106: 買
B107: 99 | G107: 買
B108: 100 | G108: 売

Sheet 画像

Sheet 気づき
A1: 気付き 質問
A2: 連敗が続いたEUR/USD 4H足を何とかプラスに持って行きたいと思い、まず建値決済をすることですぐにプラ転し、次に利益がロスカット幅の2倍になった時点で現在レートとエントリー値の真ん中にストップを移動させる方法でさらに利益が増加しました。そこでひと息つき、次はもう少し本質的な部分を変えようと思い、前回高値・安値やそれ以前のサポレジにヒゲがクロスしているような場面をフィルターとして加えたところ、かなりいい感触がつかめました。やることはＭＡ反発と同じですが、目立つ中指を探してダウ理論を意識してエントリーすることで、レンジ内でのエントリーが極端に減りました。ヒゲの長さに幅をもたせたり、長い陽線と陰線がペアになっているのをローソク足と考えたり、ＭＡ反発していなくても入れそうな場面がたくさんありましたが、今はそういうのもあるんだな、くらいに考えています。
A11: 感想
A12: このやり方で検証すると、自然とサポレジを意識するので、サポレジの練習になることを知りました。サポレジを引くことでサポレジの練習しようと思っても今までやりませんでしたが、検証とペアだと自然にやってます（笑）。よって明日はこの手法で他の通貨ペアや時間足も試してみます。まだきちんとエントリーの手順等は考えていませんが、あらかじめチャートにラインを引いて待ち受けるトレードというより、まずはＰＢを見つけて、そこから直近の高値安値を確認し、さらに過去でそのラインが意識されているかどうかを確認する、ついでに伸びるとしたらどこまで伸ばせるかも確認する、といった流れになるかもしれません。新しい検証ルールが固まり次第、一度先生方に確認していただきます。 トレンドの押し目や戻りとＭＡの相性がいいことは聞いたことがありますが、仕掛け①ではすでにＰＢがＭＡとセットになっているので、それにサポレジを付け加える、といった感じでしょうか。
A21: 今後
A22: サポレジの重要性が少し分かってきたので、当分は検証しながらたくさんサポレジを引き、意識されているラインと、そこにあたった時のローソク足の形（今はＰＢ）に注目します。あと、ゆくゆくはトレンド後期で確実に負ける、トレンドがまだ十分に伸ばせきれていない点等を色々と改善していきます。

Sheet 検証終了通貨
B2: 検証終了通貨
B4: ルール | C4: 通貨ペア | D4: 日足 | E4: 終了日 | F4: 4Ｈ足 | G4: 終了日 | H4: １Ｈ足 | I4: 終了日
B5: PB | C5: EUR/USD | D5: 54 | E5: 2015-07-09 | F5: 100 | G5: 2015-07-12 | H5: 100 | I5: 2015-07-11
B6: PB | C6: GBP/USD | D6: 46 | E6: 2015-07-10
B7: PB
B8: PB
B9: PB
B10: PB
B11: PB
B12: PB

Sheet テンプレ
B2: 通貨ペア | F2: 時間足 | H2: 日足 | J2: 当初資金 | L2: =C9 -> 1,000,000 | N2: 最終資金 | P2: =C108+R108 -> 
B3: エントリー理由 | D3: 10MA・20MAの両方の上側にキャンドルがあれば買い方向、下側なら売り方向。MAに触れてPB出現でエントリー待ち、PB高値or安値ブレイクでエントリー。 | J3: 決済理由 | L3: ・トレーリングストップ（ダウ理論）
B4: 損益金額 | D4: =SUM($R$9:$S$993) -> 153,684 | F4: 損益pips | H4: =SUM($T$9:$U$108) -> 292.0 | J4: 最大ドローアップ | L4: =MAX($C$9:$D$990)-C9 -> 153,684 | N4: 最大ドローダウン | P4: =MIN($C$9:$D$990)-C9 -> 0
B5: 勝数 | C5: =COUNTIF($R$9:$R$990,">0") -> 1 | D5: 負数 | E5: =COUNTIF($R$9:$R$990,"<0") -> 0 | F5: 引分 | G5: =COUNTIF($R$9:$R$990,"=0") -> 0 | H5: 勝率 | I5: =C5/SUM(C5,E5,G5) -> 100.0% | J5: 最大連勝 | N5: 最大連敗
B7: No. | C7: 資金 | E7: エントリー | J7: リスク（3%） | M7: ロット | N7: 決済 | R7: 損益
E8: 西暦 | F8: 日付 | G8: 売買 | H8: レート | J8: pips | K8: 損失上限 | N8: 西暦 | O8: 日付 | P8: レート | R8: 金額 | T8: pips
B9: 1 | C9: 1,000,000 | E9: 2001 | F9: 2015-04-17 | G9: 買 | H9: 105.33 | J9: 57 | K9: =IF(F9="","",C9*0.03) -> 30,000 | M9: =IF(J9="","",(K9/J9)/1000) -> 0.53 | N9: 2001 | O9: 2015-04-17 | P9: 108.25 | R9: =IF(O9="","",(IF(G9="売",H9-P9,P9-H9))*M9*100000) -> 153,684 | T9: =IF(O9="","",IF(R9<0,J9*(-1),IF(G9="買",(P9-H9)*100,(H9-P9)*100))) -> 292.0
B10: 2 | C10: =IF(R9="","",C9+R9) -> 1,153,684 | G10: 買 | M10: =IF(J10="","",(K10/J10)/1000) ->  | R10: =IF(O10="","",(IF(G10="売",H10-P10,P10-H10))*M10*100000) ->  | T10: =IF(O10="","",IF(R10<0,J10*(-1),IF(G10="買",(P10-H10)*100,(H10-P10)*100))) -> 
B11: 3 | G11: 買
B12: 4 | G12: 売
B13: 5 | G13: 売
B14: 6 | G14: 買
B15: 7 | G15: 買
B16: 8 | G16: 買
B17: 9 | G17: 買
B18: 10 | G18: 買
B19: 11 | G19: 買
B20: 12 | G20: 買
B21: 13 | G21: 買
B22: 14 | G22: 売
B23: 15 | G23: 買
B24: 16 | G24: 買
B25: 17 | G25: 買
B26: 18 | G26: 買
B27: 19 | G27: 売
B28: 20 | G28: 買
B29: 21 | G29: 売
B30: 22 | G30: 売
B31: 23 | G31: 売
B32: 24 | G32: 売
B33: 25 | G33: 買
B34: 26 | G34: 売
B35: 27 | G35: 売
B36: 28 | G36: 売
B37: 29 | G37: 売
B38: 30 | G38: 買
B39: 31 | G39: 買
B40: 32 | G40: 買
B41: 33 | G41: 売
B42: 34 | G42: 買
B43: 35 | G43: 売
B44: 36 | G44: 買
B45: 37 | G45: 売
B46: 38 | G46: 買
B47: 39 | G47: 買
B48: 40 | G48: 売
B49: 41 | G49: 買
B50: 42 | G50: 買
B51: 43 | G51: 売
B52: 44 | G52: 売
B53: 45 | G53: 買
B54: 46 | G54: 買
B55: 47 | G55: 売
B56: 48 | G56: 売
B57: 49 | G57: 売
B58: 50 | G58: 売
B59: 51 | G59: 売
B60: 52 | G60: 売
B61: 53 | G61: 売
B62: 54 | G62: 売
B63: 55 | G63: 買
B64: 56 | G64: 売
B65: 57 | G65: 売
B66: 58 | G66: 売
B67: 59 | G67: 売
B68: 60 | G68: 買
B69: 61 | G69: 買
B70: 62 | G70: 売
B71: 63 | G71: 買
B72: 64 | G72: 売
B73: 65 | G73: 買 | K73: =IF(F73="","",C73*0.03) -> 
B74: 66 | C74: =IF(R73="","",C73+R73) ->  | G74: 買 | M74: =IF(J74="","",(K74/J74)/1000) ->  | R74: =IF(O74="","",(IF(G74="売",H74-P74,P74-H74))*M74*100000) ->  | T74: =IF(O74="","",IF(R74<0,J74*(-1),IF(G74="買",(P74-H74)*100,(H74-P74)*100))) -> 
B75: 67 | G75: 売
B76: 68 | G76: 売
B77: 69 | G77: 売
B78: 70 | G78: 買
B79: 71 | G79: 売
B80: 72 | G80: 買
B81: 73 | G81: 売
B82: 74 | G82: 売
B83: 75 | G83: 売
B84: 76 | G84: 売
B85: 77 | G85: 買
B86: 78 | G86: 売
B87: 79 | G87: 買
B88: 80 | G88: 買
B89: 81 | G89: 買
B90: 82 | G90: 買
B91: 83 | G91: 買
B92: 84 | G92: 売
B93: 85 | G93: 買
B94: 86 | G94: 売
B95: 87 | G95: 買
B96: 88 | G96: 売
B97: 89 | G97: 買
B98: 90 | G98: 売
B99: 91 | G99: 買
B100: 92 | G100: 買
B101: 93 | G101: 売
B102: 94 | G102: 売
B103: 95 | G103: 売
B104: 96 | G104: 買
B105: 97 | G105: 売
B106: 98 | G106: 買
B107: 99 | G107: 買
B108: 100 | G108: 売

Sheet Sheet1
